Cogmind - Beta 10.2 @@@ ROGUE MODE // 2020.11.12 @ 00:09:27 // Halloween2020/ForbiddenLore Player: ptdel Result: Destroyed by S-27 Virus with Autogun Performance ------------- Evolutions (4) 2000 Regions Visited (7) 1400 Robots Destroyed (31) 155 Value Destroyed (996) 996 Prototype IDs (10) 200 Alien Tech Used (0) 0 Bonus (640) 640 TOTAL SCORE: 5391 Bonus ------- Follower Combat Kills 158 Met Imprinter 300 Was Imprinted 300 Friendly Fire -118 Cogmind --------- Core Integrity 0/850 Matter 300/300 Energy 100/100 System Corruption 3% Temperature Cool (0) Movement Core (50) Location -6/Factory Parts ------- > --- POWER (2) -------- (None) > --- PROPULSION (2) --- (None) > --- UTILITY (9) ------ Spectral Analyzer Experimental Targeting Computer Experimental Melee Analysis Suite > --- WEAPON (2) ------- (None) > --- INVENTORY (4) ---- Relay Coupler [Grunt] (33) Relay Coupler [Sentry] (35) Drone Bay (2/2) Drone Bay (2/2) Peak State ------------ > --- POWER ------------ Neutrino Core Neutrino Core > --- PROPULSION ------- Medium Treads > --- UTILITY ---------- Small Storage Unit Medium Storage Unit Spectral Analyzer 0b10 Decoder Chip [Scout] Experimental Targeting Computer Experimental Melee Analysis Suite Experimental Hacking Suite Mobile Refinery Mk. CCLXVII Hacking Drone Bay > --- WEAPON ----------- Long-range Missile Launcher CR-A16's Pointy Stick > --- INVENTORY -------- Relay Coupler [Grunt] Relay Coupler [Sentry] Relay Coupler [Sentry] [Rating: 79] Favorites ----------- Power Improved Ion Engine Engine Improved Ion Engine Power Core Neutrino Core Propulsion Armored Wheel Treads Medium Treads Wheel Armored Wheel Utility Small Storage Unit Device Mobile Refinery Mk. CCLXVII Storage Small Storage Unit Processor Spectral Analyzer Hackware Experimental Hacking Suite Protection Weapon Shielding Weapon CR-A16's Pointy Stick Energy Gun Medium Laser Ballistic Cannon Light Cannon Launcher Long-range Missile Launcher Piercing Weapon CR-A16's Pointy Stick Build | -11 -10 -10 -9 -9 -7 -6 -6 ------- Run | Scr Mat Min Mat Min Zio Pro Fac Slots Evolved 8 | . . . 2 . . . 6 Power 1 | . . . . . . . 1 Propulsion . | . . . . . . . . Utility 7 | . . . 2 . . . 5 Weapon . | . . . . . . . . Parts Attached 42 | 4 6 . 1 4 11 5 11 Power 9 | 1 1 . . 1 . 2 4 Engine 6 | 1 1 . . 1 . 1 2 Core 3 | . . . . . . 1 2 Reactor . | . . . . . . . . Propulsion 10 | 2 2 . . . 3 1 2 Treads 1 | . . . . . . 1 . Leg . | . . . . . . . . Wheel 9 | 2 2 . . . 3 . 2 Hover . | . . . . . . . . Flight . | . . . . . . . . Utility 13 | 1 1 . 1 1 3 1 5 Device 4 | . . . . 1 1 1 1 Storage 2 | 1 1 . . . . . . Processor 5 | . . . . . 2 . 3 Hackware 1 | . . . . . . . 1 Protection 1 | . . . 1 . . . . Artifact . | . . . . . . . . Weapon 10 | . 2 . . 2 5 1 . Energy Gun 2 | . . . . 2 . . . Energy Cannon . | . . . . . . . . Ballistic Gun . | . . . . . . . . Ballistic Cannon 4 | . 2 . . . 2 . . Launcher 3 | . . . . . 2 1 . Special Weapon . | . . . . . . . . Impact Weapon . | . . . . . . . . Slashing Weapon . | . . . . . . . . Piercing Weapon 1 | . . . . . 1 . . Special Melee Weapon . | . . . . . . . . Unidentified Prototypes 8 | . . . . . 4 1 3 Parts Lost 22 | . . . 1 . . 5 16 Power 8 | . . . 1 . . 2 5 Propulsion 5 | . . . . . . 2 3 Utility 6 | . . . . . . . 6 Weapon 3 | . . . . . . 1 2 Highest Loss Streak 8 | . . . 1 . . 3 8 Average Slot Usage (%) 88 | . 84 100 82 90 99 77 86 Engine 7 | . 14 14 7 10 11 3 1 Core 2 | . . . . . . 1 8 Treads 1 | . . . . . . 1 4 Wheel 13 | . 28 28 22 22 22 5 . Device 6 | . . . . 2 2 10 12 Storage 19 | . 15 28 22 22 22 22 12 Processor 14 | . . . . . 17 12 25 Hackware 1 | . . . . . . . 6 Protection 1 | . . . 8 11 2 . . Energy Gun 2 | . . . . 21 5 . . Ballistic Cannon 3 | . 25 28 22 . 2 . . Launcher 6 | . . . . . 6 9 4 Piercing Weapon 7 | . . . . . 7 11 5 Naked Turns . | . . . . . . . . Heaviest Build 57 | 7 21 21 22 26 29 42 57 Greatest Support 32 | 32 32 24 24 24 24 28 28 Greatest Overweight (x) 13 | . . . . 1 2 13 12 Average Overweight (x) 1 | . . . . . . 2 2 Largest Inventory Capacity 10 | 6 10 10 10 10 10 10 10 Average Capacity 9 | 5 6 10 10 10 10 10 9 Most Carried 10 | 4 9 9 10 10 10 10 8 Average Carried 7 | 2 5 9 9 8 9 8 4 Final Capacity 10 | 6 10 10 10 10 10 10 4 Final Carried 10 | 4 9 9 9 9 10 9 4 Class Distribution -------------------- 100% | Mutant Dominant Class ---------------- Mutant | -10/Materials Mutant | -10/Mines Mutant | -9/Materials Mutant | -9/Mines Mutant | -7/Zion Mutant | -6/Proximity Caves Mutant | -6/Factory Resources | -11 -10 -10 -9 -9 -7 -6 -6 ----------- Run | Scr Mat Min Mat Min Zio Pro Fac Matter Collected 1221 | 238 108 17 . 94 88 469 207 Remotely . | . . . . . . . . Salvage Created 676 | . 130 17 11 . . 374 144 Parts 48 | . 13 7 2 . . 13 13 Haulers Intercepted . | . . . . . . . . Recyclers Shooed 1 | . . 1 . . . . . Parts Field Recycled . | . . . . . . . . Retrieved Matter . | . . . . . . . . Parts Self-Destructed 6 | . . . . . . 6 . Prevented . | . . . . . . . . Kills | -11 -10 -10 -9 -9 -7 -6 -6 ------- Run | Scr Mat Min Mat Min Zio Pro Fac Combat Hostiles Destroyed 26 | . 6 3 2 . . 10 5 Melee 5 | . . . . . . 2 3 Cannons 11 | . 6 3 2 . . . . AOE 10 | . . . . . . 8 2 Classes Destroyed 11 | . 3 . . . . 4 4 Worker 1 | . . . . . . . 1 Builder 1 | . . . . . . . 1 Tunneler 1 | . . . . . . . 1 Minesweeper 1 | . . . . . . 1 . Watcher 1 | . 1 . . . . . . Swarmer 14 | . 3 3 2 . . 4 2 Grunt 7 | . 3 . . . . 3 1 Brawler 2 | . . . . . . 2 . Sentry 2 | . . . . . . 1 1 Programmer 1 | . . . . . . . 1 Samaritan 3 | . . . . . . 3 . Best Kill Streak 7 | . 3 2 2 . . 7 3 Combat Bots Only 7 | . 3 2 2 . . 7 2 Max Kills in Single Turn 3 | . 1 1 1 . . 3 2 Gunslinging . | . . . . . . . . Exploded 3 | . . . . . . 3 2 Melee 1 | . . . . . . 1 1 Uniques/NPCs Destroyed . | . . . . . . . . Combat | -11 -10 -10 -9 -9 -7 -6 -6 -------- Run | Scr Mat Min Mat Min Zio Pro Fac Damage Taken 3171 | . 88 136 268 . . 810 1869 Core 1174 | . 9 26 55 . . 228 856 Absorbed by Shields . | . . . . . . . . Core Remaining (%) 71 | 100 . 86 . . . 29 . Volleys Fired 62 | . 13 12 11 . . 22 4 Largest 2 | . 2 2 2 . . 1 1 Hottest 70 | . 70 70 70 . . 43 43 Shots Fired 98 | . 26 24 22 . . 22 4 Gun . | . . . . . . . . Cannon 72 | . 26 24 22 . . . . Launcher 26 | . . . . . . 22 4 Special . | . . . . . . . . Kinetic 72 | . 26 24 22 . . . . Thermal . | . . . . . . . . Explosive 26 | . . . . . . 22 4 Electromagnetic . | . . . . . . . . Robot Hit Streak 10 | . 5 8 2 . . 10 2 Robot Miss Streak 3 | . 1 3 3 . . 2 1 Penetration Max . | . . . . . . . . Secondary Targets . | . . . . . . . . Shots Hit Robots 78 | . 14 12 10 . . 26 16 Core Hits 53 | . 7 4 2 . . 28 12 Critical Hits 3 | . . . . . . 2 1 Critical Kills 1 | . . . . . . . 1 Critical Parts Destroyed 2 | . . . . . . 2 . Melee Attacks 27 | . . . . . . 11 16 Impact . | . . . . . . . . Slashing . | . . . . . . . . Piercing 27 | . . . . . . 11 16 Sneak Attacks 14 | . . . . . . 9 5 Combat Hostiles . | . . . . . . . . Follow-up Attacks . | . . . . . . . . Damage Inflicted 4451 | . 185 189 146 . . 2592 1339 Guns . | . . . . . . . . Cannons 520 | . 185 189 146 . . . . Explosions 2162 | . . . . . . 1667 495 Melee 1769 | . . . . . . 925 844 Ramming . | . . . . . . . . Kinetic 520 | . 185 189 146 . . . . Thermal . | . . . . . . . . Explosive 2162 | . . . . . . 1667 495 Electromagnetic . | . . . . . . . . Impact . | . . . . . . . . Slashing . | . . . . . . . . Piercing 1769 | . . . . . . 925 844 Highest Corruption 3 | . . . 2 2 2 . 3 Average Corruption 2 | . . . 2 2 2 . 2 Corruption Purged . | . . . . . . . . Effects 7 | . . . . 1 . . 6 Matter Fused 2 | . . . . . . . 2 Heat Flow Errors 2 | . . . . . . . 2 Energy Discharges 3 | . . . . 1 . . 2 Overload Shots . | . . . . . . . . Overflow Damage 523 | . . 12 . . . 342 169 Projectiles 12 | . . 12 . . . . . Explosions 137 | . . . . . . 134 3 Melee 374 | . . . . . . 208 166 Knockbacks 5 | . 1 3 1 . . . . Impact . | . . . . . . . . Kinetic 5 | . 1 3 1 . . . . Secondary . | . . . . . . . . Self-Inflicted Damage 307 | . . . . . . 307 . Shots 5 | . . . . . . 5 . Rammed . | . . . . . . . . Targets Rammed . | . . . . . . . . Kicked . | . . . . . . . . Crushed . | . . . . . . . . Highest Temperature 257 | . 30 54 23 . . 14 257 Average Temperature 35 | . 11 22 23 . . 10 124 Received Heat Transfer 171 | . 24 . 9 . . 36 102 Siege Activations . | . . . . . . . . Robots Corrupted . | . . . . . . . . Combat Hostiles . | . . . . . . . . Parts Fried . | . . . . . . . . Impact Corruptions . | . . . . . . . . Robots Melted . | . . . . . . . . Combat Hostiles . | . . . . . . . . Parts Melted . | . . . . . . . . Heat Transferred . | . . . . . . . . Parts Sabotaged . | . . . . . . . . Parts Stolen . | . . . . . . . . Parts Stripped . | . . . . . . . . Power Chain Reactions . | . . . . . . . . Missiles Intercepted . | . . . . . . . . Alert | -11 -10 -10 -9 -9 -7 -6 -6 ------- Run | Scr Mat Min Mat Min Zio Pro Fac Peak Influence 311 | . 252 182 215 83 . . 311 Initial 97 | . . 97 70 83 . . 4 Average 137 | . 94 141 101 83 . . 171 Maximum Alert Level 1 | . 1 . 1 . . . 1 Low Security (%) 79 | 100 81 100 91 100 . . 69 Level 1 20 | . 18 . 8 . . . 30 Level 2 . | . . . . . . . . Level 3 . | . . . . . . . . Level 4 . | . . . . . . . . Level 5 . | . . . . . . . . High Security . | . . . . . . . . Max Security . | . . . . . . . . Squads Dispatched 5 | . 1 . 2 . . . 2 Investigation . | . . . . . . . . Extermination 1 | . . . . . . . 1 Reinforcement 4 | . 1 . 2 . . . 1 Assault . | . . . . . . . . Garrison . | . . . . . . . . Intercept . | . . . . . . . . Construction Impeded . | . . . . . . . . Haulers Reinforced 1 | . . . . . . . 1 Stealth | -11 -10 -10 -9 -9 -7 -6 -6 --------- Run | Scr Mat Min Mat Min Zio Pro Fac Distress Signals 3 | . . . 1 . . . 2 Communications Jammed . | . . . . . . . . Distress Signals . | . . . . . . . . Times Spotted 65 | . 13 4 15 . . 13 20 Peak Tracking Total 12 | . 4 3 12 . . 4 5 Tactical Retreats 7 | . 3 1 2 . . 1 . Traps | -11 -10 -10 -9 -9 -7 -6 -6 ------- Run | Scr Mat Min Mat Min Zio Pro Fac Traps Triggered 1 | . . . 1 . . . . Indirectly . | . . . . . . . . Trap Hack Attempts . | . . . . . . . . Triggered . | . . . . . . . . Disarmed . | . . . . . . . . Reprogrammed . | . . . . . . . . Reused . | . . . . . . . . Traps Extracted . | . . . . . . . . Installed . | . . . . . . . . Triggered 1 | . . . . . . 1 . Machines | -11 -10 -10 -9 -9 -7 -6 -6 ---------- Run | Scr Mat Min Mat Min Zio Pro Fac Machines Disabled 12 | . . . . . . . 12 Max in Single Turn 1 | . . . . . . . 1 Machines Sabotaged . | . . . . . . . . Garrisons Compromised . | . . . . . . . . Overloaded Fab Kills . | . . . . . . . . Fab Network Shutdowns . | . . . . . . . . Hacking | -11 -10 -10 -9 -9 -7 -6 -6 --------- Run | Scr Mat Min Mat Min Zio Pro Fac Machines Accessed 6 | . 2 1 1 . . 1 1 Terminals 5 | . 2 1 1 . . 1 . Fabricators 1 | . . . . . . . 1 Repair Stations . | . . . . . . . . Recycling Units . | . . . . . . . . Scanalyzers . | . . . . . . . . Garrison Access . | . . . . . . . . Total Hacks 12 | . 7 1 2 . . 1 1 Successful 5 | . 3 . . . . 1 1 Failed 7 | . 4 1 2 . . . . Catastrophic 2 | . 1 1 . . . . . Database Lockouts . | . . . . . . . . Manual 11 | . 3 . . . 2 2 4 Terminals 11 | . 7 1 2 . . 1 . Fabricators 1 | . . . . . . . 1 Repair Stations . | . . . . . . . . Recycling Units . | . . . . . . . . Scanalyzers . | . . . . . . . . Garrison Access . | . . . . . . . . Terminal Hacks 4 | . 3 . . . . 1 . Record 2 | . 1 . . . . 1 . Prototype ID Bank 1 | . 1 . . . . . . Unreport Threat 1 | . 1 . . . . . . Fabricator Hacks 1 | . . . . . . . 1 Network Status 1 | . . . . . . . 1 Repair Station Hacks . | . . . . . . . . Recycling Unit Hacks . | . . . . . . . . Scanalyzer . | . . . . . . . . Garrison Access Hacks . | . . . . . . . . Unauthorized Hacks . | . . . . . . . . Terminals . | . . . . . . . . Fabricators . | . . . . . . . . Repair Stations . | . . . . . . . . Recycling Units . | . . . . . . . . Scanalyzers . | . . . . . . . . Garrison Access . | . . . . . . . . Data Cores Recovered . | . . . . . . . . Used . | . . . . . . . . Hacking Detections 4 | . 2 1 1 . . . . Full Trace Events . | . . . . . . . . Feedback Events . | . . . . . . . . Feedback Blocked . | . . . . . . . . Robot Schematics Acquired . | . . . . . . . . Robots Built . | . . . . . . . . Matter . | . . . . . . . . Time . | . . . . . . . . Total Robot Build Rating . | . . . . . . . . Part Schematics Acquired . | . . . . . . . . Parts Built . | . . . . . . . . Matter . | . . . . . . . . Time . | . . . . . . . . Total Part Build Rating . | . . . . . . . . Parts Repaired . | . . . . . . . . Time . | . . . . . . . . Parts Recycled . | . . . . . . . . Recycled Matter . | . . . . . . . . Retrieved Matter . | . . . . . . . . Retrieved Components . | . . . . . . . . Parts Scanalyzed . | . . . . . . . . Part Schematics Acquired . | . . . . . . . . Parts Damaged . | . . . . . . . . Bothacking | -11 -10 -10 -9 -9 -7 -6 -6 ------------ Run | Scr Mat Min Mat Min Zio Pro Fac Used RIF Installer . | . . . . . . . . Robots Hacked . | . . . . . . . . Non-combat . | . . . . . . . . Combat . | . . . . . . . . Robot Hacks Applied . | . . . . . . . . Relay Couplers Released . | . . . . . . . . Robots Rewired . | . . . . . . . . Allies Hacked . | . . . . . . . . Hacks Repelled . | . . . . . . . . Allies | -11 -10 -10 -9 -9 -7 -6 -6 -------- Run | Scr Mat Min Mat Min Zio Pro Fac Total Allies 6 | . . . . . 4 2 . Largest Group 4 | . . . . . 4 2 2 Highest-Rated Group 188 | . . . . . 154 188 188 Highest-Rated Ally 94 | . . . . . 41 94 94 Total Orders . | . . . . . . . . Ally Attacks 23 | . . . . . . 6 17 Total Damage 1652 | . . . . . . 252 1400 Kills 9 | . . . . . . 1 8 Allies Corrupted . | . . . . . . . . Allies Melted . | . . . . . . . . Intel | -11 -10 -10 -9 -9 -7 -6 -6 ------- Run | Scr Mat Min Mat Min Zio Pro Fac Robot Analysis Total . | . . . . . . . . Derelict Logs Recovered 5 | . . . . 1 2 2 . Drone Launches 1 | . . . . . . . 1 Drone Recoveries 1 | . . . . . . . 1 Decoded 0b10 Intel 8 | . . . . . . . 8 Traps 8 | . . . . . . . 8 Exploration | -11 -10 -10 -9 -9 -7 -6 -6 ------------- Run | Scr Mat Min Mat Min Zio Pro Fac Turns Passed 5885 | 44 393 129 96 232 2139 1757 1095 Spaces Moved 4052 | 36 243 95 65 217 2089 869 438 Core 212 | 6 . . . . . 164 42 Treads 490 | . . . . . . 137 353 Legs . | . . . . . . . . Wheels 3350 | 30 243 95 65 217 2089 568 43 Hover . | . . . . . . . . Flight . | . . . . . . . . Fastest Speed 50 | 50 90 90 90 90 90 100 90 Average Speed 130 | 91 96 90 90 99 99 190 216 Slowest Speed 700 | 100 100 90 90 100 110 700 650 Overloaded Moves . | . . . . . . . . Propulsion Burnouts . | . . . . . . . . Robots Hopped . | . . . . . . . . Cave-ins Triggered . | . . . . . . . . Exploration Rate (%) 37 | 2 30 17 11 48 93 87 14 Regions Visited 7 Branch Regions 4 Pre-discovered Areas 2 | . . . . . 1 1 . Known Exits Taken . | . . . . . . . . Unknown Exits Taken 7 | 1 1 1 1 1 1 1 . Scrap Searched 7 | . . . . 1 4 2 . Spaces Dug . | . . . . . . . . Terrain Destroyed 180 | . . . . . . 141 39 Melee . | . . . . . . . . Projectile . | . . . . . . . . AOE 180 | . . . . . . 141 39 Terrain Rammed . | . . . . . . . . Walls Destroyed . | . . . . . . . . Machines Disabled . | . . . . . . . . Actions | -11 -10 -10 -9 -9 -7 -6 -6 --------- Run | Scr Mat Min Mat Min Zio Pro Fac Total 4485 | 47 379 114 80 232 2162 922 549 Wait 230 | . 98 8 3 10 30 9 72 Move 4045 | 35 242 94 64 216 2088 868 438 Hop . | . . . . . . . . Pick Up 55 | 8 14 . 1 2 17 5 8 Fast Attach . | . . . . . . . . Attach 34 | 4 5 . 1 2 6 5 11 Detach . | . . . . . . . . Swap 8 | . 1 . . 2 5 . . Drop 24 | . 6 . . . 16 2 . Fire 62 | . 13 12 11 . . 22 4 Melee 27 | . . . . . . 11 16 Ram . | . . . . . . . . Kick . | . . . . . . . . Crush . | . . . . . . . . Escape Stasis . | . . . . . . . . Rewire . | . . . . . . . . Trap . | . . . . . . . . Miscellaneous . | . . . . . . . . Route ------- -11/Scrapyard -10/Materials -10/Mines -9/Materials -9/Mines (discovered 2 exits: [*Mat] / *Zio) -7/Zion -6/Proximity Caves -6/Factory (discovered 2 exits: *Low x2) History --------- Turn | Location | Event 20 | -11/Scrapyard | Discovered new exit (range 16) 45 | -11/Scrapyard | Entered Materials 305 | -10/Materials | Build established: Mutant 389 | -10/Materials | Discovered new exit (range 9) 438 | -10/Materials | Entered Mines 562 | -10/Mines | Discovered new exit (range 3) 567 | -10/Mines | Entered Materials 567 | -9/Materials | Evolved 2 slots: Utility x2 655 | -9/Materials | Discovered new exit (range 9) 663 | -9/Materials | Entered Mines 889 | -9/Mines | A Derelict revealed a hidden shortcut to a safe place 891 | -9/Mines | Discovered new exit (range 6) 895 | -9/Mines | Entered Zion 942 | -7/Zion | System corruption cleaned by Quarantine Array 1003 | -7/Zion | Learned Factory emergency access door positions 1061 | -7/Zion | Given the Hacking Drone Bay 1063 | -7/Zion | Found Prototype Device 1064 | -7/Zion | Identified Hacking Drone Bay 1148 | -7/Zion | Learned location of Armory (-3) 1301 | -7/Zion | Found Prototype Processor 1303 | -7/Zion | Identified Spectral Analyzer 1308 | -7/Zion | Found Prototype Processor 1310 | -7/Zion | Found Prototype Hackware 1312 | -7/Zion | Found Prototype Processor 1510 | -7/Zion | Found CR-A16's Pointy Stick 1587 | -7/Zion | Received a hallucinogenic algorithm 1677 | -7/Zion | Given A8's code to call for help 1692 | -7/Zion | Learned Factory stockpile data 1701 | -7/Zion | Found Prototype Launcher 1702 | -7/Zion | Identified Rocket Array 1899 | -7/Zion | Imprinted 1901 | -7/Zion | Declared Zion's savior 2184 | -7/Zion | Found Prototype Device 2253 | -7/Zion | Discovered new exit (range 19) 3034 | -7/Zion | Entered Proximity Caves 3078 | -6/Proximity Caves | Learned Factory emergency access door positions 3196 | -6/Proximity Caves | Identified Mobile Refinery Mk. CCLXVII 3200 | -6/Proximity Caves | Destroyed 7 combat bots 3320 | -6/Proximity Caves | Attracted the attention of an 0b10 checkpoint 3333 | -6/Proximity Caves | Core integrity fell below 50% 3367 | -6/Proximity Caves | Lost 3 parts (1p1n1w) 3622 | -6/Proximity Caves | Spotted B-75 Beast 3666 | -6/Proximity Caves | Enhanced Grunt warped into view, answering call for help 3674 | -6/Proximity Caves | Enhanced Grunt warped into view, answering call for help 3688 | -6/Proximity Caves | Allies destroyed B-75 Beast 4752 | -6/Proximity Caves | Discovered new exit (range 23) 4791 | -6/Proximity Caves | Entered Factory 4791 | -6/Factory | Accompanied by 2 allies 4791 | -6/Factory | Evolved 6 slots: Power x1, Utility x5 4791 | -6/Factory | Identified Exp. Hacking Suite 4792 | -6/Factory | Identified exit to Lower Caves 4792 | -6/Factory | Identified Exp. Melee Analysis Suite 4793 | -6/Factory | Identified Exp. Targeting Computer 5726 | -6/Factory | Lost 3 parts (1p2n) 5865 | -6/Factory | Core integrity fell below 50% 5883 | -6/Factory | Core integrity fell below 20% 5886 | -6/Factory | Destroyed by S-27 Virus with Autogun Last Messages --------------- 05863_ H-66 Slayer destroyed. 05863_ Fusion Modulator explodes. 05863_ A-15 Conveyor destroyed. 05863_ Fusion Modulator explodes. 05864_ K-01 Serf collects debris. 05864_ Penetrated by Slug. 05864_ K-01 Serf destroyed. 05864_ Penetrated by Slug. 05864_ 0b10 Decoder Chip [Scout] destroyed. 05870_ System corrupted: Matter fused (-8). 05871_ Penetrated by Slug. 05874_ Med. Storage Unit destroyed. 05877_ Penetrated by Slug. 05878_ U-05 Engineer lays Concrete. 05880_ U-05 Engineer builds a Wall. 05881_ Penetrated by Slug. 05884_ U-05 Engineer builds a Wall. 05884_ Penetrated by Slug. 05884_ Exp. Hacking Suite destroyed. 05884_ Penetrated by Slug. Map ----- +----------------------------------------------------+ | ?????????????????????????????????????????????????? | | ?????????????????????????????????????????????????? | | ?????????????????????????????????????????????????? | | ?????????????????????????????????????????????????? | | ????????????????????+????????????????????????????? | | ????????????????????# ???????????????????????????? | | ????????????????????# ???????????????????????????? | | ????????????????????# ???????????????????????????? | | ????????????????????# ???????????????????????+???? | | ????????????????????# ??????????????????????????? | | ????????????????????# ??????????????????????????? | | ????????????????????# ??????????????????????????? | | ???????????????##???# ??????????????????????????? | | ???????????????? ??# ??????????????????????????? | | ????????????????? ??# ?????????????????????????? | | ?????????????????? ?# ?????????????????????????? | | ?????????????????? # ?????????????????????????? | | ??????????????????? # ??????#######????????????? | | ????????????????????+ s ####### #????????????? | | ????????????????????#ss #????????????? | | ????????????????????#s #????????????? | | ????????????????????# = #????????????? | | ????????????????????##;;;;;;;;; #????????????? | | ????????????????????#; = ;; ##????????????? | | ????????????????????#; [! #?????????????? | | ????????????????????#; h @ ;% #?????????????? | | ????????????????????#; ! = ########??????? | | ????????????????????#; ; #??????? | | ????????????????????## ; #??????? | | ?????????????????????# ; R #??????? | | ?????????????????????; ####### #?????## | | ????????????????????#; # #?????# | | ????????????????????#; # #????## | | ????????????????????#; ; # #???## # | | ????????????????????#; # # #???# ## | | ????????????????????## #u + #######! | | ????????????????????## ; # | | ????????????????????# # ########### | | ????????????????????## # #????????##] | | ?????????????????????# "T ] # #????????## | | ?????????????????????# # #????????## | | ?????????????????????########## #????????## | | ??????????????????????????????# #???????### | | ??????????????????????????????# #???????# # | | ??????????????????????????????# #???????# # | | ???????????????????#########?## #??????## # | | ???????????????????# ? ## #??????# # | | ???????????????????# ## #??????## # | | ???????????????????# """ """ ##########???????# # | | ???????????????????# """ """ ###############??# # | +----------------------------------------------------+ Best States ------------- Heat Dissipation 37 Energy Generation 33 Energy Capacity 530 Matter Stores 300 Matter Capacity 300 Sight Range 24 Terrain Scan Density 10 Weapon Shielding 33 Reclamation Efficiency 10 Evasion (%) 42 Targeting Accuracy 12 Melee Accuracy 12 Recoil Reduction 1 Offensive Hacking 16 Item Schematics ----------------- None Robot Schematics ------------------ None Fabricated ------------ Nothing Alien Tech Used ----------------- None Achievements -------------- Help From High Places Robot Respite The One Challenges ------------ None Game ------ Seed CloakingMagneticFirepult Manual? 0 Play Time 00:55:38 Cumulative 47.8 hours Start 2020.11.11 @ 23:07:42 End 2020.11.12 @ 00:09:27 Sessions 1 Manual Loads 0 Difficulty Rogue Special Mode Halloween2020/ForbiddenLore Game No. 62 Rogue 46 Adventurer 15 Explorer 1 Win Type - Total 0 Types 0/0/0/0/0/0/0/0/0 Lore% 22 Gallery% 36 Achievement% 33 Wizard Run 0 Options --------- ASCII 0 Keyboard 0 Movement Mouse Keybinds 0 Fullscreen 2 Font 18/SmallcapsGlow Map View 76x50 Tactical HUD 1 Map Filters NONE Filters NONE Steam 1 RUN: d29b90de-f7c9-4ea1-a620-24e38fd803f5